Workbook

Sheet (1)
A1: Step | B1: Outcomes | D1: Total Experimental Outcomes (Sample Points) for Entire Experiment?
A2: Step1 | B2: 3 | D2: =B2&"*"&B3&"*"&B4 -> 3*2*4
A3: Step2 | B3: 2 | D3: =B2*B3*B4 -> 24
A4: Step3 | B4: 4

Sheet (2)
A1: Find the number of combinations and list them
A3: Items | C3: N | D3: =COUNTA(A4:A9) -> 6 | E3: all the items
A4: A | C4: n | D4: 3 | E4: subset of items or items selected
A5: B | C5: Combinations | D5: =FACT(D3)/(FACT(D4)*FACT(D3-D4)) -> 20
A6: C | C6: COMBIN | D6: =COMBIN(D3,D4) -> 20
A7: D
A8: E | C8: # of unique Experimental Outcomes (w/ N = 6, n = 3) or Total Number of Experimental Outcomes (w/ N = 6, n = 3) or # of combinations of N objects taken n at a time | D8: Item 1 | E8: Item 2 | F8: Item 3 | G8: Sample Point or Experimental Outcome
A9: F | C9: 1 | D9: A | E9: B | F9: C | G9: ="("&D9&","&E9&","&F9&")" -> (A,B,C)
C10: 2 | D10: A | E10: B | F10: D | G10: ="("&D10&","&E10&","&F10&")" -> (A,B,D)
C11: 3 | D11: A | E11: B | F11: E | G11: (A,B,E)
C12: 4 | D12: A | E12: B | F12: F | G12: (A,B,F)
C13: 5 | D13: A | E13: C | F13: D | G13: (A,C,D)
C14: 6 | D14: A | E14: C | F14: E | G14: (A,C,E)
C15: 7 | D15: A | E15: C | F15: F | G15: (A,C,F)
C16: 8 | D16: A | E16: D | F16: E | G16: (A,D,E)
C17: 9 | D17: A | E17: D | F17: F | G17: (A,D,F)
C18: 10 | D18: A | E18: E | F18: F | G18: (A,E,F)
C19: 11 | D19: B | E19: C | F19: D | G19: (B,C,D)
C20: 12 | D20: B | E20: C | F20: E | G20: (B,C,E)
C21: 13 | D21: B | E21: C | F21: F | G21: (B,C,F)
C22: 14 | D22: B | E22: D | F22: E | G22: (B,D,E)
C23: 15 | D23: B | E23: D | F23: F | G23: (B,D,F)
C24: 16 | D24: B | E24: E | F24: F | G24: (B,E,F)
C25: 17 | D25: C | E25: D | F25: E | G25: (C,D,E)
C26: 18 | D26: C | E26: D | F26: F | G26: (C,D,F)
C27: 19 | D27: C | E27: E | F27: F | G27: (C,E,F)
C28: 20 | D28: D | E28: E | F28: F | G28: (D,E,F)
C30: S = {(A,B,C), (A,B,D), (A,B,E), (A,B,F), (A,C,D), (A,C,E), (A,C,F), (A,D,E), (A,D,F), (A,E,F), (B,C,D), (B,C,E), (B,C,F), (B,D,E), (B,D,F), (B,E,F), (C,D,E), (C,D,F), (C,E,F), (D,E,F)}
C48: Formula to create S ==> ="S = {"&MCONCAT(G9:G28,", ")&"}", entered with Ctrl = Shift = Enter

Sheet (3)
A1: Find the number of permutations and list them
A3: Items | C3: N | D3: =COUNTA(A4:A9) -> 6 | E3: all the items
A4: A | C4: n | D4: 3 | E4: subset of items or items selected
A5: B | C5: permutations | D5: =FACT(D3)/FACT(D3-D4) -> 120
A6: C | C6: PERMUT | D6: =PERMUT(D3,D4) -> 120
A7: D
A8: E | C8: All permutations of B, D, F
A9: F | C9: BDF
C10: BFD
C11: DBF
C12: DFB
C13: FBD
C14: FDB

Sheet (4)
A1: Experiment of tossing coin three times
A2: Steps in Experiment | B2: 3
A3: Outcomes Step 1 | B3: 2
A4: Outcomes Step 2 | B4: 2
A5: Outcomes Step 3 | B5: 2 | F5: Success =
A6: Total Experimental Outcomes (Sample Points) | B6: =PRODUCT(B3:B5) -> 8 | F6: Heads
A7: P(for each) = | B7: =1/B6 -> 0.125 | F7: ="Notation for "&F6&" is "&LEFT(F6,1) -> Notation for Heads is H
F8: =LEFT(F6,1) -> H
A9: Number of Sample Points (# of Unique Experimental Outcomes) | B9: Toss 1 | C9: Toss 2 | D9: Toss 3 | E9: Sample Point or Experimental Outcome | F9: Probability of Sample Point (classical = each is equally likely) | H9: Number of Heads | J9: Event = Number of Heads (Category) | K9: Frequency | L9: Formula | M9: Relative Frequency | N9: Probability by Adding | O9: Formula | P9: Probability Multiplying (each equally likely) | Q9: Formula
A10: 1 | B10: H | C10: H | D10: H | E10: ="("&B10&", "&C10&", "&D10&")" -> (H, H, H) | F10: =COUNTIF($E$10:$E$17,E10)/$B$6 -> 0.125 | H10: =COUNTIF(B10:D10,$F$8) -> 3 | J10: 3 | K10: =COUNTIF($H$10:$H$17,J10) -> 1 | L10: =" "&K10&"/"&$K$14&" =" -> 1/8 = | M10: =K10/$K$14 -> 0.125 | N10: =SUMIF($H$10:$H$17,J10,$F$10:$F$17) -> 0.125 | O10: =SUMIF($I$10:$I$17,L10,$F$10:$F$17) | P10: =1/$B$6*K10 -> 0.125 | Q10: =1/$B$6*M10
A11: 2 | B11: T | C11: H | D11: H | E11: (T, H, H) | F11: 0.125 | H11: 2 | J11: 2 | K11: =COUNTIF($H$10:$H$17,J11) -> 3 | L11: =" "&K11&"/"&$K$14&" =" -> 3/8 = | M11: =K11/$K$14 -> 0.375 | N11: =SUMIF($H$10:$H$17,J11,$F$10:$F$17) -> 0.375 | O11: =SUMIF($I$10:$I$17,L11,$F$10:$F$17) | P11: =1/$B$6*K11 -> 0.375 | Q11: =1/$B$6*M11
A12: 3 | B12: H | C12: T | D12: H | E12: (H, T, H) | F12: 0.125 | H12: 2 | J12: 1 | K12: =COUNTIF($H$10:$H$17,J12) -> 3 | L12: =" "&K12&"/"&$K$14&" =" -> 3/8 = | M12: =K12/$K$14 -> 0.375 | N12: =SUMIF($H$10:$H$17,J12,$F$10:$F$17) -> 0.375 | O12: =SUMIF($I$10:$I$17,L12,$F$10:$F$17) | P12: =1/$B$6*K12 -> 0.375 | Q12: =1/$B$6*M12
A13: 4 | B13: H | C13: H | D13: T | E13: (H, H, T) | F13: 0.125 | H13: 2 | J13: 0 | K13: =COUNTIF($H$10:$H$17,J13) -> 1 | L13: =" "&K13&"/"&$K$14&" =" -> 1/8 = | M13: =K13/$K$14 -> 0.125 | N13: =SUMIF($H$10:$H$17,J13,$F$10:$F$17) -> 0.125 | O13: =SUMIF($I$10:$I$17,L13,$F$10:$F$17) | P13: =1/$B$6*K13 -> 0.125 | Q13: =1/$B$6*M13
A14: 5 | B14: T | C14: T | D14: H | E14: (T, T, H) | F14: 0.125 | H14: 1 | K14: =SUM(K10:K13) -> 8
A15: 6 | B15: T | C15: H | D15: T | E15: (T, H, T) | F15: 0.125 | H15: 1
A16: 7 | B16: H | C16: T | D16: T | E16: (H, T, T) | F16: 0.125 | H16: 1
A17: 8 | B17: T | C17: T | D17: T | E17: (T, T, T) | F17: 0.125 | H17: 0
B19: Step 1 | C19: Step 2 | D19: Step 3 | E19: List of Sample Points (Experimental Outcomes)
D21: Head | E21: (H, H, H)
C22: Head
D23: Tail | E23: (H, H, T)
B24: Head
D25: Head | E25: (H, T, H)
C26: Tail
D27: Tail | E27: (H, T, T)
D29: Head | E29: (T, H, H)
C30: Head
D31: Tail | E31: (T, H, T)
B32: Tail
D33: Head | E33: (T, T, H)
C34: Tail
D35: Tail | E35: (T, T, T)

Sheet (5)
D1: Requirement 1 0 <= P(Ei) >= 1
A2: Experimental Outcome 1 | B2: E1 | C2: =1/COUNTA($A$2:$A$6) -> 0.2 | D2: =AND(C2>=0,C2<=1) -> TRUE
A3: Experimental Outcome 2 | B3: E2 | C3: =1/COUNTA($A$2:$A$6) -> 0.2 | D3: =AND(C3>=0,C3<=1) -> TRUE
A4: Experimental Outcome 3 | B4: E3 | C4: =1/COUNTA($A$2:$A$6) -> 0.2 | D4: =AND(C4>=0,C4<=1) -> TRUE
A5: Experimental Outcome 4 | B5: E4 | C5: =1/COUNTA($A$2:$A$6) -> 0.2 | D5: =AND(C5>=0,C5<=1) -> TRUE
A6: Experimental Outcome 5 | B6: E5 | C6: =1/COUNTA($A$2:$A$6) -> 0.2 | D6: =AND(C6>=0,C6<=1) -> TRUE
B7: Requirement 2 ΣP(Ei) = 1 | C7: =SUM(C2:C6) -> 1
A9: Method used = Classical, because all experimental outcomes were equally likely.

Sheet (6)
A1: Outcomes | B1: 3
A2: Experiment Repeated | B2: 50
C4: ="Number of times that Experimental Outcome Occurred in "&B2&" tries" -> Number of times that Experimental Outcome Occurred in 50 tries | E4: Relative Frequency | F4: Requirement 1 0 <= P(Ei) >= 1
A5: Experimental Outcome 1 | B5: E1 | C5: 20 | E5: =C5/$C$8 -> 0.4 | F5: =AND(E5>=0,E5<=1) -> TRUE
A6: Experimental Outcome 2 | B6: E2 | C6: 13 | E6: =C6/$C$8 -> 0.26 | F6: =AND(E6>=0,E6<=1) -> TRUE
A7: Experimental Outcome 3 | B7: E3 | C7: 17 | E7: =C7/$C$8 -> 0.34 | F7: =AND(E7>=0,E7<=1) -> TRUE
C8: =SUM(C5:C7) -> 50 | D8: Requirement 2 ΣP(Ei) = 1 | E8: =SUM(E5:E7) -> 1
C10: Method used = Relative Frequency

Sheet (7)
A1: E1 | B1: ="P("&A1&")" -> P(E1) | C1: 0.1
A2: E2 | B2: ="P("&A2&")" -> P(E2) | C2: 0.15
A3: E3 | B3: ="P("&A3&")" -> P(E3) | C3: 0.4
A4: E4 | B4: ="P("&A4&")" -> P(E4) | C4: 0.2
C5: =SUM(C1:C4) -> 0.85
C6: Not valid because they violate:
C7: Requirement 2 ΣP(Ei) = 1

Sheet (8)
A1: Steps | B1: Steps | C1: Outcome 1 | D1: Notation 1 | E1: Outcome 2 | F1: Notation 2 | G1: Number of Outcomes For Step
A2: Step 1 | B2: Review by planning commission | C2: Positive Recommendation | D2: PR | E2: Negative Recommendation | F2: NR | G2: =COUNTA(C2,E2) -> 2
A3: Step 2 | B3: Final Decision by City Council | C3: Approve | D3: A | E3: Disapprove | F3: D | G3: =COUNTA(C3,E3) -> 2
A5: Experiment | B5: Developer submits application for zoning change
A6: # of Steps For Zoning Changes = | B6: 2
A7: Total Sample Points (Experimental Outcomes) | B7: =G2*G3 -> 4
B9: Step 1 | C9: Step 2 | D9: List of All Sample Points (Experimental Outcomes)
C12: =$D$3 -> A | D12: ="("&$B$13&", "&C12&")" -> (PR, A) | E12: =C2&", "&C3 -> Positive Recommendation, Approve
B13: =D2 -> PR
C14: =$F$3 -> D | D14: ="("&$B$13&", "&C14&")" -> (PR, D) | E14: =C2&", "&E3 -> Positive Recommendation, Disapprove
C16: =$D$3 -> A | D16: ="("&$B$17&", "&C16&")" -> (NR, A) | E16: =E2&", "&C3 -> Negative Recommendation, Approve
B17: =F2 -> NR
C18: =$F$3 -> D | D18: ="("&$B$17&", "&C18&")" -> (NR, D) | E18: =E2&", "&E3 -> Negative Recommendation, Disapprove
A20: ="List of sample Points S = {"&D12&", "&D14&", "&D16&", "&D18&"}" -> List of sample Points S = {(PR, A), (PR, D), (NR, A), (NR, D)}
A21: ="List of sample Points S = {"&E12&", "&E14&", "&E16&", "&E18&"}" -> List of sample Points S = {Positive Recommendation, Approve, Positive Recommendation, Disapprove, Negative Recommendation, Approve, Negative Recommendation, Disapprove}

Sheet (9)
A1: Simple Random sampling uses a sample size n from a population of size N to obtain data that can be used to make inferences about the characteristics of a population
A3: Random Sample means we randomly select a subset of accounts from the population
A4: Population of bank accounts = | B4: 50
A5: Sample size = | B5: 4
A6: Total Number of Samples possible = | B6: =FACT(B4)/(FACT(B5)*FACT(B4-B5)) -> 230300
A7: Total Number of Samples possible = | B7: =COMBIN(B4,B5) -> 230300

Sheet (11x) (hidden)
C1: Driver Using Seat Belt | F1: c | I1: d
B2: Region | C2: Yes | D2: No | E2: Total | F2: Proportion of Yes within Region | G2: Proportion of No within Region | H2: Requirement 2
B3: NE | C3: 148 | D3: 52 | E3: =SUM(C3:D3) -> 200 | F3: =C3/$E3 -> 0.74 | G3: =D3/$E3 -> 0.26 | H3: =SUM(F3:G3) -> 1
B4: MW | C4: 162 | D4: 54 | E4: =SUM(C4:D4) -> 216 | F4: =C4/$E4 -> 0.75 | G4: 0.25 | H4: =SUM(F4:G4) -> 1
B5: S | C5: 296 | D5: 74 | E5: =SUM(C5:D5) -> 370 | F5: 0.8 | G5: 0.2 | H5: =SUM(F5:G5) -> 1
B6: W | C6: 252 | D6: 48 | E6: =SUM(C6:D6) -> 300 | F6: 0.84 | G6: 0.16 | H6: =SUM(F6:G6) -> 1
B7: Total | C7: =SUM(C3:C6) -> 858 | D7: =SUM(D3:D6) -> 228 | E7: =SUM(C7:D7) -> 1086
A9: a | B9: ="P("&$C$1&" = "&C2&") = "&C7&"/"&E7 -> P(Driver Using Seat Belt = Yes) = 858/1086 | C9: =C7/E7 -> 0.7900552486
A10: b | B10: ="Yes because "&TEXT(C9,"0.00%")&" > .78" -> Yes because 79.01% > .78
A11: c | B11: ="West has highest at "&F6 -> West has highest at 0.84
A13: d | B13: =B2 -> Region | C13: Proportion of drivers in sample from each region of country
B14: NE | C14: =E3/$E$7 -> 0.1841620626
B15: MW | C15: =E4/$E$7 -> 0.1988950276
B16: S | C16: =E5/$E$7 -> 0.3406998158
B17: W | C17: =E6/$E$7 -> 0.2762430939
B18: Total | C18: =SUM(C14:C17) -> 1
B20: The South had the most drivers selected
B21: The West had the second most
A23: e | B23: Yes, .34 for South + .286 for West = .626 shows that 62.6% of the survey came from the two highest usage regions. The .79 probability may be high.
K28: Proportions of usage of regions compared to whole country
K29: ="P("&$B3&" = "&C$2&") =" -> P(NE = Yes) = | L29: =C3/$E$7 -> 0.1362799263 | M29: ="P("&$B3&" = "&D$2&") =" -> P(NE = No) = | N29: =D3/$E$7 -> 0.04788213628
K30: ="P("&$B4&" = "&C$2&") =" -> P(MW = Yes) = | L30: =C4/$E$7 -> 0.1491712707 | M30: ="P("&$B4&" = "&D$2&") =" -> P(MW = No) = | N30: =D4/$E$7 -> 0.04972375691
K31: ="P("&$B5&" = "&C$2&") =" -> P(S = Yes) = | L31: =C5/$E$7 -> 0.2725598527 | M31: ="P("&$B5&" = "&D$2&") =" -> P(S = No) = | N31: =D5/$E$7 -> 0.06813996317
K32: ="P("&$B6&" = "&C$2&") =" -> P(W = Yes) = | L32: =C6/$E$7 -> 0.2320441989 | M32: ="P("&$B6&" = "&D$2&") =" -> P(W = No) = | N32: =D6/$E$7 -> 0.04419889503
K34: Sum of all must = 1 | L34: =SUM(L29:L32,N29:N32) -> 1

Sheet (11)
A1: Region | B1: DOT-compliant | C1: Noncompliant | D1: Total | F1: DOT compliant by Region | G1: P(compliant) | H1: P(Not compliant) | I1: Total
A2: NE | B2: 96 | C2: 62 | D2: =SUM(B2:C2) -> 158 | F2: ="P("&A2&")" -> P(NE) | G2: =B2/$D2 -> 0.6075949367 | H2: =C2/$D2 -> 0.3924050633 | I2: =SUM(G2:H2) -> 1
A3: MW | B3: 86 | C3: 43 | D3: =SUM(B3:C3) -> 129 | F3: ="P("&A3&")" -> P(MW) | G3: =B3/$D3 -> 0.6666666667 | H3: =C3/$D3 -> 0.3333333333 | I3: 1
A4: S | B4: 92 | C4: 49 | D4: =SUM(B4:C4) -> 141 | F4: ="P("&A4&")" -> P(S) | G4: 0.6524822695 | H4: 0.3475177305 | I4: 1
A5: W | B5: 76 | C5: 16 | D5: =SUM(B5:C5) -> 92 | F5: ="P("&A5&")" -> P(W) | G5: 0.8260869565 | H5: 0.1739130435 | I5: 1
A6: Total | B6: =SUM(B2:B5) -> 350 | C6: =SUM(C2:C5) -> 170 | D6: =SUM(B6:C6) -> 520
A9: a | B9: ="P(wear "&B1&") = " -> P(wear DOT-compliant) = | C9: =B6/D6 -> 0.6730769231
A10: b | B10: Yes, the overall probability has been increasing from .48 five years ago, to .63 one year ago, and is now approximately .67. The probability that a motorcyclist wears a DOT-compliant helmet appears to be increasing.
A11: c | B11: see above

Sheet (12)
A1: Powerball | D1: 55
A2: Select | B2: 5 | C2: numbers from | D2: 1,2,3,4,5,6,7,8,9,10,11,12,13,14,15,16,17,18,19,20,21,22,23,24,25,26,27,28,29,30,31,32,33,34,35,36,37,38,39,40,41,42,43,44,45,46,47,48,49,50,51,52,53,54,55
B3: Match in any order means COMBIN
A4: and
D5: 42
A6: Select | B6: 1 | C6: numbers from | D6: 1,2,3,4,5,6,7,8,9,10,11,12,13,14,15,16,17,18,19,20,21,22,23,24,25,26,27,28,29,30,31,32,33,34,35,36,37,38,39,40,41,42
A8: a | B8: =COMBIN(D1,B2) -> 3478761 | C8: =COMBIN(D1,B2) | D8: Combinations
A9: b | B9: =1/B8 -> 2.87458667e-07 | C9: =1/B8 | D9: Probability to get $200,000
A10: c | B10: =B8*D5 -> 146107962 | C10: =B8*D5 | D10: Total number of combinations * 42 extra
B11: =1/B10 -> 6.844253977e-09 | C11: =1/B10 | D11: Probability to win Powerball

Sheet (14)
B1: E1 | C1: ="1/"&COUNTA($B$1:$B$4) -> 1/4 | D1: =1/COUNTA($B$1:$B$4) -> 0.25 | F1: Mutually Exclusive
B2: E2 | C2: ="1/"&COUNTA($B$1:$B$4) -> 1/4 | D2: =1/COUNTA($B$1:$B$4) -> 0.25 | F2: Mutually Exclusive
B3: E3 | C3: ="1/"&COUNTA($B$1:$B$4) -> 1/4 | D3: =1/COUNTA($B$1:$B$4) -> 0.25 | F3: Mutually Exclusive
B4: E4 | C4: ="1/"&COUNTA($B$1:$B$4) -> 1/4 | D4: =1/COUNTA($B$1:$B$4) -> 0.25 | F4: Mutually Exclusive
D5: =SUM(D1:D4) -> 1
A7: a | B7: P(E2) | C7: ="1/"&COUNTA($B$1:$B$4) -> 1/4 | D7: =D2 -> 0.25 | E7: simply add because there is no over lap
A8: b | B8: P(E21 or E2) | C8: ="1/"&COUNTA($B$1:$B$4)&"+"&"1/"&COUNTA($B$1:$B$4) -> 1/4+1/4 | D8: =SUM(D1:D2) -> 0.5 | E8: simply add because there is no over lap
A9: c | B9: P(E21 or E2 or E4) | C9: ="1/"&COUNTA($B$1:$B$4)&"+1/"&COUNTA($B$1:$B$4)&"+1/"&COUNTA($B$1:$B$4) -> 1/4+1/4+1/4 | D9: =SUM(D1:D2,D4) -> 0.75 | E9: simply add because there is no over lap

Sheet (15)
A1: Cards | B1: Probability | D1: Count | F1: Samples Points for Ace | G1: Samples Points for Club | H1: Samples Points for Face Card
A2: Club 1 | B2: =1/$D$2 -> 0.01923076923 | D2: =COUNTA(A2:A53) -> 52 | F2: =A14 -> Club A | G2: =A2 -> Club 1 | H2: =A11 -> Club J
A3: Club 2 | B3: 0.01923076923 | F3: =A27 -> Diamond A | G3: =A3 -> Club 2 | H3: =A12 -> Club Q
A4: Club 3 | B4: 0.01923076923 | F4: =A40 -> Spade A | G4: Club 3 | H4: =A13 -> Club K
A5: Club 4 | B5: 0.01923076923 | F5: =A53 -> Heart A | G5: Club 4 | H5: =A24 -> Diamond J
A6: Club 5 | B6: 0.01923076923 | G6: Club 5 | H6: =A25 -> Diamond Q
A7: Club 6 | B7: 0.01923076923 | G7: Club 6 | H7: =A26 -> Diamond K
A8: Club 7 | B8: 0.01923076923 | G8: Club 7 | H8: =A37 -> Spade J
A9: Club 8 | B9: 0.01923076923 | G9: Club 8 | H9: =A38 -> Spade Q
A10: Club 9 | B10: 0.01923076923 | G10: Club 9 | H10: =A39 -> Spade K
A11: Club J | B11: 0.01923076923 | G11: Club J | H11: =A50 -> Heart J
A12: Club Q | B12: 0.01923076923 | G12: Club Q | H12: =A51 -> Heart Q
A13: Club K | B13: 0.01923076923 | G13: Club K | H13: =A52 -> Heart K
A14: Club A | B14: 0.01923076923 | G14: Club A
A15: Diamond 1 | B15: 0.01923076923
A16: Diamond 2 | B16: 0.01923076923
A17: Diamond 3 | B17: 0.01923076923 | F17: Count | G17: Count | H17: Count | I17: Use COUNTA function to count words
A18: Diamond 4 | B18: 0.01923076923 | F18: =COUNTA(F2:F16) -> 4 | G18: =COUNTA(G2:G16) -> 13 | H18: =COUNTA(H2:H16) -> 12
A19: Diamond 5 | B19: 0.01923076923 | F19: P(pull an Ace) | G19: P(Pull A Club) | H19: P(Pull Face Card)
A20: Diamond 6 | B20: 0.01923076923 | F20: =COUNTA(F2:F16)&"/"&$D$2 -> 4/52 | G20: =COUNTA(G2:G16)&"/"&$D$2 -> 13/52 | H20: =COUNTA(H2:H16)&"/"&$D$2 -> 12/52
A21: Diamond 7 | B21: 0.01923076923 | F21: =F18/$D$2 -> 0.07692307692 | G21: =G18/$D$2 -> 0.25 | H21: =H18/$D$2 -> 0.2307692308
A22: Diamond 8 | B22: 0.01923076923
A23: Diamond 9 | B23: 0.01923076923
A24: Diamond J | B24: 0.01923076923
A25: Diamond Q | B25: 0.01923076923
A26: Diamond K | B26: 0.01923076923
A27: Diamond A | B27: 0.01923076923
A28: Spade 1 | B28: 0.01923076923 | F28: check | G28: check | H28: check
A29: Spade 2 | B29: 0.01923076923 | F29: =COUNTA(F2:F16)/$D$2 -> 0.07692307692 | G29: =COUNTA(G2:G16)/$D$2 -> 0.25 | H29: =COUNTA(H2:H16)/$D$2 -> 0.2307692308
A30: Spade 3 | B30: 0.01923076923 | F30: =SUMPRODUCT(SUMIF($A$2:$A$53,F2:F16,$B$2:$B$53)) -> 0.07692307692 | G30: =SUMPRODUCT(SUMIF($A$2:$A$53,G2:G16,$B$2:$B$53)) -> 0.25 | H30: =SUMPRODUCT(SUMIF($A$2:$A$53,H2:H16,$B$2:$B$53)) -> 0.2307692308
A31: Spade 4 | B31: 0.01923076923
A32: Spade 5 | B32: 0.01923076923
A33: Spade 6 | B33: 0.01923076923
A34: Spade 7 | B34: =1/$D$2 -> 0.01923076923
A35: Spade 8 | B35: 0.01923076923
A36: Spade 9 | B36: 0.01923076923
A37: Spade J | B37: 0.01923076923
A38: Spade Q | B38: 0.01923076923
A39: Spade K | B39: 0.01923076923
A40: Spade A | B40: 0.01923076923
A41: Heart 1 | B41: 0.01923076923
A42: Heart 2 | B42: 0.01923076923
A43: Heart 3 | B43: 0.01923076923
A44: Heart 4 | B44: 0.01923076923
A45: Heart 5 | B45: 0.01923076923
A46: Heart 6 | B46: 0.01923076923
A47: Heart 7 | B47: 0.01923076923
A48: Heart 8 | B48: 0.01923076923
A49: Heart 9 | B49: 0.01923076923
A50: Heart J | B50: 0.01923076923
A51: Heart Q | B51: 0.01923076923
A52: Heart K | B52: 0.01923076923
A53: Heart A | B53: 0.01923076923

Sheet (16)
B1: # of Steps or Trials = | C1: Roll dice once with two die | D1: 2 | K1: b | L1: Die 1 | M1: Die 2 | N1: Sample Point | O1: SUM | Q1: check
B2: Possible outcomes from one die | C2: 6 | L2: 1 | M2: =MOD(ROWS(M$2:M2)-1,6)+1 -> 1 | N2: ="("&L2&", "&M2&")" -> (1, 1) | O2: =SUM(L2:M2) -> 2 | Q2: =SUM(O2:O37)=SUM(E8:J13) -> TRUE
A3: a | B3: Possible outcomes from two dice | C3: =C2&"*"&C2&" = "&C2*C2 -> 6*6 = 36 | D3: =C2*C2 -> 36 | L3: 1 | M3: =MOD(ROWS(M$2:M3)-1,6)+1 -> 2 | N3: ="("&L3&", "&M3&")" -> (1, 2) | O3: =SUM(L3:M3) -> 3
L4: 1 | M4: =MOD(ROWS(M$2:M4)-1,6)+1 -> 3 | N4: (1, 3) | O4: 4
B5: b | C5: Sum of each possibility | L5: 1 | M5: =MOD(ROWS(M$2:M5)-1,6)+1 -> 4 | N5: (1, 4) | O5: 5
E6: Die 2 | L6: 1 | M6: =MOD(ROWS(M$2:M6)-1,6)+1 -> 5 | N6: (1, 5) | O6: 6
E7: 1 | F7: 2 | G7: 3 | H7: 4 | I7: 5 | J7: 6 | L7: 1 | M7: =MOD(ROWS(M$2:M7)-1,6)+1 -> 6 | N7: (1, 6) | O7: 7
C8: Die 1 | D8: 1 | E8: =E$7+$D8 -> 2 | F8: 3 | G8: 4 | H8: 5 | I8: 6 | J8: 7 | L8: 2 | M8: =MOD(ROWS(M$2:M8)-1,6)+1 -> 1 | N8: (2, 1) | O8: 3
D9: 2 | E9: 3 | F9: 4 | G9: 5 | H9: 6 | I9: 7 | J9: 8 | L9: 2 | M9: =MOD(ROWS(M$2:M9)-1,6)+1 -> 2 | N9: (2, 2) | O9: 4
D10: 3 | E10: 4 | F10: 5 | G10: 6 | H10: 7 | I10: 8 | J10: 9 | L10: 2 | M10: =MOD(ROWS(M$2:M10)-1,6)+1 -> 3 | N10: (2, 3) | O10: 5
D11: 4 | E11: 5 | F11: 6 | G11: 7 | H11: 8 | I11: 9 | J11: 10 | L11: 2 | M11: =MOD(ROWS(M$2:M11)-1,6)+1 -> 4 | N11: (2, 4) | O11: 6
D12: 5 | E12: 6 | F12: 7 | G12: 8 | H12: 9 | I12: 10 | J12: 11 | L12: 2 | M12: =MOD(ROWS(M$2:M12)-1,6)+1 -> 5 | N12: (2, 5) | O12: 7
D13: 6 | E13: 7 | F13: 8 | G13: 9 | H13: 10 | I13: 11 | J13: 12 | L13: 2 | M13: =MOD(ROWS(M$2:M13)-1,6)+1 -> 6 | N13: (2, 6) | O13: 8
L14: 3 | M14: =MOD(ROWS(M$2:M14)-1,6)+1 -> 1 | N14: (3, 1) | O14: 4
B15: c | C15: 7 | D15: ="P(="&C15&")" -> P(=7) | E15: =COUNTIF($E$8:$J$13,C15)&"/"&$D$3 -> 6/36 | F15: =COUNTIF($E$8:$J$13,C15)/$D$3 -> 0.1666666667 | L15: 3 | M15: =MOD(ROWS(M$2:M15)-1,6)+1 -> 2 | N15: (3, 2) | O15: 5
B16: d | C16: 9 | D16: ="P(>="&C16&")" -> P(>=9) | E16: =COUNTIF($E$8:$J$13,">="&C16)&"/"&$D$3 -> 10/36 | F16: =COUNTIF($E$8:$J$13,">="&C16)/$D$3 -> 0.2777777778 | L16: 3 | M16: =MOD(ROWS(M$2:M16)-1,6)+1 -> 3 | N16: (3, 3) | O16: 6
B17: e | C17: Count Odd | D17: =D3/2 -> 18 | L17: 3 | M17: =MOD(ROWS(M$2:M17)-1,6)+1 -> 4 | N17: (3, 4) | O17: 7
C18: Count Even | D18: =D3/2 -> 18 | L18: 3 | M18: =MOD(ROWS(M$2:M18)-1,6)+1 -> 5 | N18: (3, 5) | O18: 8
B19: ="I do not agree because there are "&D24&" odd numbers and "&D25&" even numbers." -> I do not agree because there are 18 odd numbers and 18 even numbers. | L19: 3 | M19: =MOD(ROWS(M$2:M19)-1,6)+1 -> 6 | N19: (3, 6) | O19: 9
L20: 4 | M20: =MOD(ROWS(M$2:M20)-1,6)+1 -> 1 | N20: (4, 1) | O20: 5
B21: f | C21: Classical | L21: 4 | M21: =MOD(ROWS(M$2:M21)-1,6)+1 -> 2 | N21: (4, 2) | O21: 6
C22: ="1/"&D3&" for each sample point" -> 1/36 for each sample point | L22: 4 | M22: =MOD(ROWS(M$2:M22)-1,6)+1 -> 3 | N22: (4, 3) | O22: 7
L23: 4 | M23: =MOD(ROWS(M$2:M23)-1,6)+1 -> 4 | N23: (4, 4) | O23: 8
C24: check | D24: =D3-SUMPRODUCT(--(MOD($E$8:$J$13,2)=0)) -> 18 | L24: 4 | M24: =MOD(ROWS(M$2:M24)-1,6)+1 -> 5 | N24: (4, 5) | O24: 9
D25: =SUMPRODUCT(--(MOD($E$8:$J$13,2)=0)) -> 18 | L25: 4 | M25: =MOD(ROWS(M$2:M25)-1,6)+1 -> 6 | N25: (4, 6) | O25: 10
L26: 5 | M26: =MOD(ROWS(M$2:M26)-1,6)+1 -> 1 | N26: (5, 1) | O26: 6
L27: 5 | M27: =MOD(ROWS(M$2:M27)-1,6)+1 -> 2 | N27: (5, 2) | O27: 7
L28: 5 | M28: =MOD(ROWS(M$2:M28)-1,6)+1 -> 3 | N28: (5, 3) | O28: 8
L29: 5 | M29: =MOD(ROWS(M$2:M29)-1,6)+1 -> 4 | N29: (5, 4) | O29: 9
L30: 5 | M30: =MOD(ROWS(M$2:M30)-1,6)+1 -> 5 | N30: (5, 5) | O30: 10
L31: 5 | M31: =MOD(ROWS(M$2:M31)-1,6)+1 -> 6 | N31: (5, 6) | O31: 11
L32: 6 | M32: =MOD(ROWS(M$2:M32)-1,6)+1 -> 1 | N32: (6, 1) | O32: 7
L33: 6 | M33: =MOD(ROWS(M$2:M33)-1,6)+1 -> 2 | N33: (6, 2) | O33: 8
L34: 6 | M34: =MOD(ROWS(M$2:M34)-1,6)+1 -> 3 | N34: (6, 3) | O34: 9
L35: 6 | M35: =MOD(ROWS(M$2:M35)-1,6)+1 -> 4 | N35: (6, 4) | O35: 10
L36: 6 | M36: =MOD(ROWS(M$2:M36)-1,6)+1 -> 5 | N36: (6, 5) | O36: 11
L37: 6 | M37: =MOD(ROWS(M$2:M37)-1,6)+1 -> 6 | N37: (6, 6) | O37: 12

Sheet (18)
A1: Number of Family Meals | B1: Number Of Times Outcomes Occurred | C1: Probability
A2: 0 | B2: 11 | C2: =B2/$B$10 -> 0.02217741935
A3: 1 | B3: 11 | C3: 0.02217741935
A4: 2 | B4: 30 | C4: 0.06048387097
A5: 3 | B5: 36 | C5: 0.07258064516
A6: 4 | B6: 36 | C6: 0.07258064516
A7: 5 | B7: 119 | C7: 0.2399193548
A8: 6 | B8: 114 | C8: 0.2298387097
A9: 7 | B9: 139 | C9: 0.2802419355
A10: Total | B10: =SUM(B2:B9) -> 496 | C10: =SUM(C2:C9) -> 1
F11: Method 1 | H11: Method 2 | K11: Method 3
A12: a | B12: Exactly | C12: 0 | D12: =B12&" "&C12&" meals" -> Exactly 0 meals | E12: ="P("&D12&") =" -> P(Exactly 0 meals) = | F12: =C2 -> 0.02217741935 | H12: =SUMIF($A$2:$A$9,C12,$B$2:$B$9)&"/"&$B$10 -> 11/496 | I12: =SUMIF($A$2:$A$9,C12,$B$2:$B$9)/$B$10 -> 0.02217741935 | K12: =SUMIF($A$2:$A$9,C12,$C$2:$C$9) -> 0.02217741935
A13: b | B13: At least | C13: 4 | D13: =B13&" "&C13&" meals" -> At least 4 meals | E13: ="P("&D13&") =" -> P(At least 4 meals) = | F13: =SUM(C6:C9) -> 0.8225806452 | H13: =SUMIF($A$2:$A$9,">="&C13,$B$2:$B$9)&"/"&$B$10 -> 408/496 | I13: =SUMIF($A$2:$A$9,">="&C13,$B$2:$B$9)/$B$10 -> 0.8225806452 | K13: =SUMIF($A$2:$A$9,">="&C13,$C$2:$C$9) -> 0.8225806452
A14: c | B14: At most | C14: 2 | D14: =B14&" "&C14&" meals" -> At most 2 meals | E14: ="P("&D14&") =" -> P(At most 2 meals) = | F14: =SUM(C2:C4) -> 0.1048387097 | H14: =SUMIF($A$2:$A$9,"<="&C14,$B$2:$B$9)&"/"&$B$10 -> 52/496 | I14: =SUMIF($A$2:$A$9,"<="&C14,$B$2:$B$9)/$B$10 -> 0.1048387097 | K14: =SUMIF($A$2:$A$9,"<="&C14,$C$2:$C$9) -> 0.1048387097

Sheet (19) (hidden)
B1: Participatants in Millions
A2: Activity | B2: Male | D2: Female
A3: Bicycle | B3: 22.2 | D3: 21
A4: Camp | B4: 25.6 | D4: 24.3
A5: Walk | B5: 28.7 | D5: 57.5
A6: Equip | B6: 20.4 | D6: 24.4
A7: Swim | B7: 26.4 | D7: 34.4
B8: =SUM(B3:B7) -> 123.3 | D8: =SUM(D3:D7) -> 161.6
A10: 7 years or older
A11: Male | B11: 120.9
A12: Female | B12: 127.6
A13: Total Population in age group | B13: =SUM(B11:B12) -> 248.5

Sheet (21)
C1: in millions
C2: Age | D2: Number | E2: P(x)
A3: 18 | B3: 24 | C3: =A3&"-"&B3 -> 18-24 | D3: 29.8 | E3: =D3/$D$9 -> 0.1309314587
A4: =B3+1 -> 25 | B4: =A4+9 -> 34 | C4: =A4&"-"&B4 -> 25-34 | D4: 40 | E4: 0.1757469244
A5: =B4+1 -> 35 | B5: 44 | C5: =A5&"-"&B5 -> 35-44 | D5: 43.4 | E5: 0.190685413
A6: 45 | B6: 54 | C6: =A6&"-"&B6 -> 45-54 | D6: 43.9 | E6: 0.1928822496
A7: 55 | B7: 64 | C7: =A7&"-"&B7 -> 55-64 | D7: 32.7 | E7: 0.1436731107
A8: 65 | C8: =A8 -> 65 | D8: 37.8 | E8: 0.1660808436
C9: Total | D9: =SUM(D3:D8) -> 227.6 | E9: =SUM(E3:E8) -> 1
B11: a | C11: ="P("&A3&" to "&B3&")" -> P(18 to 24) | D11: =D3/D9 -> 0.1309314587 | E11: =D3&"/"&$D$9 -> 29.8/227.6 | G11: =E3 -> 0.1309314587
B12: b | C12: ="P("&A3&" to "&B4&")" -> P(18 to 34) | D12: =SUM(D3:D4)/D9 -> 0.3066783831 | E12: ="("&D3&"+"&D4&")/"&$D$9 -> (29.8+40)/227.6 | F12: or | G12: =SUM(E3:E4) -> 0.3066783831
B13: c | C13: P(45 or more) | D13: =SUM(D6:D8)/D9 -> 0.5026362039 | E13: ="("&D6&"+"&D7&"+"&D8&")/"&$D$9 -> (43.9+32.7+37.8)/227.6 | G13: =SUM(E6:E8) -> 0.5026362039

Sheet (22)
B1: Ei = Experimental Outcome = Sample Point
B2: Each Ei has an equally likely chance of occurring
B3: Event = 1 or more Sample Points
D5: Sample Space | F5: P(Ei) = Probability for each Sample Point
D6: E1 | E6: Sample Points | F6: ="P("&D6&")" -> P(E1) | G6: =1/COUNTA($D$6:$D$10) -> 0.2
D7: E2 | F7: ="P("&D7&")" -> P(E2) | G7: =1/COUNTA($D$6:$D$10) -> 0.2
D8: E3 | F8: ="P("&D8&")" -> P(E3) | G8: =1/COUNTA($D$6:$D$10) -> 0.2
D9: E4 | F9: ="P("&D9&")" -> P(E4) | G9: =1/COUNTA($D$6:$D$10) -> 0.2
D10: E5 | F10: ="P("&D10&")" -> P(E5) | G10: =1/COUNTA($D$6:$D$10) -> 0.2
B12: Count Equally Likely Sample Points | E12: =COUNTA(D6:D10) -> 5
B14: Event Notation | C14: Event | D14: Sample Points in Event | E14: P(Event) | F14: # of Equally Likely Sample Points | G14: Probability for Each Event SUM of Sample Points (Union or Intersection, use appropriate rule) | H14: Since Each is equally likely, P(Ei) = FavorableOutcome/TotalOutcomes
A15: a | B15: A | C15: ="Event "&B15&" =" -> Event A = | D15: ="{"&D6&", "&D7&"}" -> {E1, E2} | E15: =F6&" + "&F7 -> P(E1) + P(E2) | F15: 2 | G15: =SUM(G6:G7) -> 0.4 | H15: =F15/$E$12 -> 0.4
A16: a | B16: B | C16: ="Event "&B16&" =" -> Event B = | D16: ="{"&D8&", "&D9&"}" -> {E3, E4} | E16: =F8&" + "&F9 -> P(E3) + P(E4) | F16: 2 | G16: =SUM(G8:G9) -> 0.4 | H16: =F16/$E$12 -> 0.4
A17: a | B17: C | C17: ="Event "&B17&" =" -> Event C = | D17: ="{"&D7&", "&D8&", "&D10&"}" -> {E2, E3, E5} | E17: =F7&" + "&F8&" + "&F10 -> P(E2) + P(E3) + P(E5) | F17: 3 | G17: =SUM(G7:G8,G10) -> 0.6 | H17: =F17/$E$12 -> 0.6
A19: b | B19: Yes, A and B are Mutually Exclusive because they do not share any sample points
A20: b | B20: ="P("&B15&" U "&B16&") = "&E15&" + "&E16 -> P(A U B) = P(E1) + P(E2) + P(E3) + P(E4) | E20: =SUM(G15:G16) -> 0.8
A22: c | B22: Not Event A = Ac = | D22: ="{"&D8&", "&D9&", "&D10&"}" -> {E3, E4, E5}
A23: c | B23: Not Event C = Cc = | D23: ="{"&D6&", "&D7&"}" -> {E1, E2}
A24: c | B24: P(Ac) | C24: =SUM(G8:G10) -> 0.6
A25: c | B25: P(Cc) | C25: =SUM(G6:G7) -> 0.4
A27: d | B27: A Union Not B = A U Bc | D27: =C29 -> {E1, E2, E5}
B28: =C15 -> Event A = | C28: =D15 -> {E1, E2}
B29: Event Bc = | C29: ="{"&D6&", "&D7&", "&D10&"}" -> {E1, E2, E5}
A30: d | B30: ="P(A U Bc) = "&F6&" + "&F7&" + "&F10 -> P(A U Bc) = P(E1) + P(E2) + P(E5) | D30: =SUM(G6:G7,G10) -> 0.6
A32: e | B32: ="P(B U C) = "&D33&" + "&D34&" - "&F8&" = "&F8&" + "&F9&" + "&F7&" + "&F10 -> P(B U C) = P(E3) + P(E4) + P(E2) + P(E3) + P(E5) - P(E3) = P(E3) + P(E4) + P(E2) + P(E5) | F32: =SUM(G7:G10) -> 0.8
B33: =C16 -> Event B = | C33: {E3, E4} | D33: P(E3) + P(E4)
B34: Event C = | C34: {E2, E3, E5} | D34: P(E2) + P(E3) + P(E5)
B44: Alternative Method for a
B45: Event Notation | C45: Event | D45: Sample Point | G45: Sample Points in Event | H45: Probability for Each Event SUM of Sample Points (Union or Intersection, use appropriate rule)
B46: A | C46: ="Event "&B46&" =" -> Event A = | D46: =$D$6 -> E1 | E46: =$D$7 -> E2 | G46: ="{"&D46&", "&E46&"}" -> {E1, E2} | H46: =SUMPRODUCT(SUMIF($D$6:$D$10,D46:F46,$G$6:$G$10)) -> 0.4
B47: B | C47: ="Event "&B47&" =" -> Event B = | D47: =$D$8 -> E3 | E47: =$D$9 -> E4 | G47: ="{"&D47&", "&E47&"}" -> {E3, E4} | H47: =SUMPRODUCT(SUMIF($D$6:$D$10,D47:F47,$G$6:$G$10)) -> 0.4
B48: C | C48: ="Event "&B48&" =" -> Event C = | D48: =$D$7 -> E2 | E48: =$D$8 -> E3 | F48: =$D$10 -> E5 | G48: ="{"&D48&", "&E48&", "&F48&"}" -> {E2, E3, E5} | H48: =SUMPRODUCT(SUMIF($D$6:$D$10,D48:F48,$G$6:$G$10)) -> 0.6

Sheet (23)
B1: E1 | C1: ="P("&B1&")" -> P(E1) | D1: 0.05
B2: E2 | C2: ="P("&B2&")" -> P(E2) | D2: 0.2
B3: E3 | C3: P(E3) | D3: 0.2
B4: E4 | C4: P(E4) | D4: 0.25
B5: E5 | C5: P(E5) | D5: 0.15
B6: E6 | C6: P(E6) | D6: 0.1
B7: E7 | C7: P(E7) | D7: 0.05
D8: =SUM(D1:D7) -> 1
B10: Event
A11: a | B11: A | C11: ="P("&B11&")" -> P(A) | D11: ="{"&B1&", "&B4&", "&B6&"}" -> {E1, E4, E6} | E11: ="P("&SUBSTITUTE(SUBSTITUTE(D11,"{",""),"}","")&")" -> P(E1, E4, E6) | F11: =SUM(D1,D4,D6) -> 0.4
A12: a | B12: B | C12: ="P("&B12&")" -> P(B) | D12: ="{"&B2&", "&B4&", "&B7&"}" -> {E2, E4, E7} | E12: ="P("&SUBSTITUTE(SUBSTITUTE(D12,"{",""),"}","")&")" -> P(E2, E4, E7) | F12: =SUM(D2,D4,D7) -> 0.5
A13: a | B13: C | C13: ="P("&B13&")" -> P(C) | D13: ="{"&B2&", "&B3&", "&B5&", "&B7&"}" -> {E2, E3, E5, E7} | E13: ="P("&SUBSTITUTE(SUBSTITUTE(D13,"{",""),"}","")&")" -> P(E2, E3, E5, E7) | F13: =SUM(D2:D3,D5,D7) -> 0.6
A15: b | B15: A U B = | C15: ="{"&B1&", "&B4&", "&B6&", "&B2&", "&B7&"}" -> {E1, E4, E6, E2, E7}
A16: b | B16: P(A U B) = | C16: =SUM(D1,D4,D6,D2,D7) -> 0.65
A18: c | B18: A ∩ B = | C18: =B4 -> E4
A19: c | B19: P(A ∩ B) = | C19: =D4 -> 0.25
A21: d | B21: Yes, A and C are mutually exclusive because they have no sample points in common
A23: e | B23: Bc | C23: ="{"&B1&", "&B3&", "&B5&", "&B6&"}" -> {E1, E3, E5, E6}
B24: P(Bc) | C24: =SUM(D1,D3,D5:D6) -> 0.5
C25: =SUMPRODUCT(SUMIF(B1:B7,I25:L25,D1:D7)) -> 0.5 | I25: E1 | J25: E3 | K25: E5 | L25: E6

Sheet (25)
B1: Young Adults = 18 - 24 years old
B2: Female lives at home | C2: F | D2: ="P("&C2&")" -> P(F) | E2: 0.42
B3: Male lives at home | C3: M | D3: ="P("&C3&")" -> P(M) | E3: 0.56
B4: F ∩ M | C4: F and M | D4: ="P("&C4&")" -> P(F and M) | E4: 0.24 | F4: Intersection = And = ∩ = and = both = joint = concurrent
F5: Remember to not double count when you do a Union = U = OR = at least 1
B6: Randomly Select a Male and a Female:
A7: a | B7: P(at least 1 of the 2 selected lives at home) = (this means 1 or more) | C7: =D2&" + "&D3&" - "&D4&CHAR(10)&"(subtract because we don't want to Double Count)" -> P(F) + P(M) - P(F and M) (subtract because we don't want to Double Count) | F7: =E2&" + "&E3&" - "&E4 -> 0.42 + 0.56 - 0.24 | G7: =E2+E3-E4 -> 0.74
A9: b | B9: P(Neither Live At Home) (if we know the probability that 1 or more live at home, then 1 - P(1 or more) = P(None) = P(Neither) | C9: =1-G7 -> 0.26

Sheet (27old) (hidden)
B1: Big Ten in Rose Bowl | D1: 2961
B2: Pac-10 in Rose Bowl | D2: 4494
B3: Neither in Rose Bowl | D3: 6823
B4: Total Respondents | D4: 13429
F6: Big Ten
F7: Yes | G7: No | H7: Total | K7: check
D8: Pac-10 | E8: Yes | F8: =H8-G8 -> 849 | G8: =G10-G9 -> 3645 | H8: =D2 -> 4494 | K8: =F8 -> 849 | L8: =G8 -> 3645 | M8: =SUM(K8:L8) -> 4494
E9: No | F9: =F10-F8 -> 2112 | G9: =D3 -> 6823 | H9: =H10-H8 -> 8935 | K9: =F9 -> 2112 | L9: =G9 -> 6823 | M9: =SUM(K9:L9) -> 8935
E10: Total | F10: =D1 -> 2961 | G10: =H10-F10 -> 10468 | H10: =D4 -> 13429 | K10: =SUM(K8:K9) -> 2961 | L10: =SUM(L8:L9) -> 10468 | M10: =SUM(K10:L10) -> 13429
E12: Steps to Set Up This Table this:
E13: 1 | F13: Place numbers in white cells
E14: 2 | F14: ="Solve for value in cell "&ADDRESS(ROW(H9),COLUMN(H9),4)&" with the formula "&H10&"-"&H8&" = "&H10-H8 -> Solve for value in cell H9 with the formula 13429-4494 = 8935
E15: 3 | F15: ="Solve for value in cell "&ADDRESS(ROW(G10),COLUMN(G10),4)&" with the formula "&H10&"-"&F10&" = "&G10-G8 -> Solve for value in cell G10 with the formula 13429-2961 = 6823
A16: a | B16: P(Neither in Rose Bowl) | C16: =G9/H10 -> 0.5080795294 | E16: 4 | F16: ="Solve for value in cell "&ADDRESS(ROW(G8),COLUMN(G8),4)&" with the formula "&G10&"-"&G9&" = "&G10-G9 -> Solve for value in cell G8 with the formula 10468-6823 = 3645
A17: b | B17: P(Either) P(1 or the other will be in Rose Bowl) = P(Big Ten or Pac-10 or Both) = | C17: =SUM(F10,H8,-F8)/H10 -> 0.4919204706 | E17: 5 | F17: ="Solve for value in cell "&ADDRESS(ROW(F8),COLUMN(F8),4)&" with the formula "&H8&"-"&G8&" = "&H8-G8 -> Solve for value in cell F8 with the formula 4494-3645 = 849
A18: c | B18: P(Both) P(Pac-10 AND Big Ten) P(Pac-10 ∩ Big Ten) | C18: =F8/H10 -> 0.06322138655 | E18: 6 | F18: ="Solve for value in cell "&ADDRESS(ROW(F9),COLUMN(F9),4)&" with the formula "&F10&"-"&F8&" = "&F10-F8 -> Solve for value in cell F9 with the formula 2961-849 = 2112

Sheet (28)
A1: P(Rented car over last 12 months for business) | B1: 0.458
A2: P(Rented car over last 12 months for personal) | B2: 0.54
A3: P(Rented car over last 12 months for Business AND Personal) P(Rented car over last 12 months for Business ∩ Personal) | B3: 0.3 | C3: Remember to not double count when you do a Union = U = OR = at least 1
A5: P(Rented car over last 12 months for Business OR Personal) | B5: =B1+B2-B3 -> 0.698
A6: P(NOT Rented car over last 12 months for Business OR Personal) | B6: =1-B5 -> 0.302 | C6: P(Neither) = P(None)

Sheet (29)
A1: Ivy League | B1: Event Notation | C1: Number | D1: P(x) | E1: P(x)
A2: Early Admit | B2: =LEFT(A2,1) -> E | C2: 1033 | D2: ="P("&B2&")" -> P(E) | E2: =C2/$C$5 -> 0.3623290074
A3: Reject | B3: R | C3: 854 | D3: ="P("&B3&")" -> P(R) | E3: 0.2995440196
A4: Deferred | B4: D | C4: 964 | D4: P(D) | E4: 0.338126973
A5: Total Early Applications Received | C5: =SUM(C2:C4) -> 2851 | E5: =SUM(E2:E4) -> 1 | G5: Early Applications Received | I5: 2851
A6: Past % of deferred that where then admitted in Regular Admissions | C6: 0.18
A7: Total Over Admitted | C7: 2375
A10: a | B10: =D2 -> P(E) | C10: =C2&"/"&$C$5 -> 1033/2851 | D10: =E2 -> 0.3623290074
B11: P(R) | C11: 854/2851 | D11: =E3 -> 0.2995440196
B12: P(D) | C12: 964/2851 | D12: =E4 -> 0.338126973
A14: b | B14: Yes, because they share no sample points - no one who was admitted was also deferred.
A15: b | B15: ="P("&B2&" and "&B4&") = 0" -> P(E and D) = 0
A17: c | B17: Probability that randomly selected admitted student was from early group
B18: =C2&"/"&C7 -> 1033/2375 | C18: =C2/C7 -> 0.4349473684
A20: c | B20: Goal: P(In early admission E OR Deferred and Admitted) = P(E OR D-A)
B21: # from deferred group who were latter admitted
B22: =C4&" * "&C6&" = "&C4*C6 -> 964 * 0.18 = 173.52
B23: Event Notation = D-A | C23: =C4*C6 -> 173.52
B24: # Early Admit
B25: E | C25: =C2 -> 1033
B26: Event E and D-A are mutually exclusive
B27: P(E OR D-A) | C27: ="("&C23&" + "&C2&")/"&C5&" = "&ROUND(SUM(C2,C23)/C5,4) -> (173.52 + 1033)/2851 = 0.4232
C28: =SUM(C23,C2)/C5 -> 0.4231918625

Sheet (30)
B1: Event | C1: P(Ei) | D1: P(Ei)
B2: A | C2: ="P("&B2&")" -> P(A) | D2: 0.5
B3: B | C3: ="P("&B3&")" -> P(B) | D3: 0.6
B4: =B2&" and "&B3 -> A and B | C4: ="P("&B4&")" -> P(A and B) | D4: 0.4
A6: a | B6: P(B|A) | C6: ="= "&$C$4&"/"&C2 -> = P(A and B)/P(A) | D6: =D4/D3 -> 0.6666666667
A7: b | B7: P(A|B) | C7: ="= "&$C$4&"/"&C3 -> = P(A and B)/P(B) | D7: =D4/D2 -> 0.8
A8: c | B8: A and B are not independent because P(A) is not equal to P(A|B)

Sheet (31)
B1: Event | C1: P(Ei) | D1: P(Ei)
B2: A | C2: ="P("&B2&")" -> P(A) | D2: 0.3 | F2: Mutually Exclusive (No Sample Points in common)
B3: B | C3: ="P("&B3&")" -> P(B) | D3: 0.4 | F3: Mutually Exclusive (No Sample Points in common)
B4: =B2&" and "&B3 -> A and B | C4: Have no sample points in common
A6: a | B6: ="P("&B4&")" -> P(A and B) | C6: 0
A7: b | B7: P(A|B) | C7: =C6/D3 -> 0
A8: c | B8: Independent means that P(A) = P(A|B), since .3 does not equal 0, they are not independent. Mutually Exclusive means that there are no sample points in common.
A9: d | B9: Mutually Exclusive and Independence are not the same. Mutually Exclusive means the two events have no sample points in common and therefore if one event occurs the other cannot occur - the two are dependent in the sense that if one occurs, the other cannot. Independent events are not dependent. Mutually Exclusive events are dependent because P(A) <> P(A|B) and P(A) (nonzero) <> 0.
H10: No Overlap

Sheet (32-old) (hidden)
C1: Yes | D1: No | E1: Total
B2: 18 to 34 | C2: 750 | D2: 170 | E2: =SUM(C2:D2) -> 920
B3: 35 and older | C3: 950 | D3: 130 | E3: =SUM(C3:D3) -> 1080
B4: Total | C4: =SUM(C2:C3) -> 1700 | D4: =SUM(D2:D3) -> 300 | E4: =SUM(C4:D4) -> 2000
A6: a | B6: Joint Probabilities
C7: Yes | D7: No | E7: Total
B8: 18 to 34 | C8: =C2/$E$4 -> 0.375 | D8: 0.085 | E8: 0.46
B9: 35 and older | C9: 0.475 | D9: 0.065 | E9: 0.54
B10: Total | C10: 0.85 | D10: 0.15 | E10: 1
A12: b | B12: The majority of people look to be older than 34 (54%) and 46% are 34 or younger.
A14: c | B14: P(Not have health insurance) = | C14: =D10 -> 0.15 | D14: Marginal Probability
A15: d | B15: P(No HI | 18 to 34) | C15: =D8/E8 -> 0.1847826087 | D15: Conditional Probability
C16: =D2/E2 -> 0.1847826087
A17: e | B17: P(No HI | 35 and older) | C17: =D9/E9 -> 0.1203703704 | D17: Conditional Probability
C18: =D3/E3 -> 0.1203703704
A19: f | B19: P(18 to 34 | NI) | C19: =D8/D10 -> 0.5666666667 | D19: Conditional Probability
C20: =D2/D4 -> 0.5666666667
A21: g | B21: 85% have health insurance. Given that you are 18 to 34, 18.4% of this group does not have insurance. Given that you are over 34, 12% does not have insurance. Of the no insurance group, about 57% are 18 to 34.

Sheet (32)
A1: Total Jan Autos sold | B1: 657000
A2: Down from last jan | B2: 0.37
A3: Big 3 USA sold | B3: 280500 | D3: GM | E3: Ford | F3: Chrysler
A4: Down | B4: 0.48
A5: US non Manufacturers | D5: Toyota | E5: Honda | F5: Nissan
A6: Light Truck | D6: Pickup | E6: minivan | F6: SUV | G6: Crossover
A8: a | C8: Type of Vehicle
C9: Car | D9: Light Truck | E9: Totals
A10: Manufacturer | B10: USA | C10: 87400 | D10: 193100 | E10: =SUM(C10:D10) -> 280500
B11: Non-USA | C11: 228500 | D11: 148000 | E11: =SUM(C11:D11) -> 376500
B12: Totals | C12: =SUM(C10:C11) -> 315900 | D12: =SUM(D10:D11) -> 341100 | E12: =SUM(C12:D12) -> 657000
C14: Type of Vehicle
C15: Car | D15: Light Truck | E15: Totals | G15: check
A16: Manufacturer | B16: USA | C16: =C10/$E$12 -> 0.1330289193 | D16: 0.2939117199 | E16: =E10/$E$12 -> 0.4269406393 | G16: =$E10/$E$12*C10/$E10 -> 0.1330289193 | H16: 0.2939117199
B17: Non-USA | C17: 0.3477929985 | D17: 0.2252663623 | E17: 0.5730593607 | G17: 0.3477929985 | H17: 0.2252663623
B18: Totals | C18: =C12/$E$12 -> 0.4808219178 | D18: 0.5191780822 | E18: =SUM(E16:E17) -> 1
A20: b | B20: There is a higher probability that the vehicle was not manufactured by a U. S. auto maker. In terms of market share, non U.S. auto makers lead with a 57.3% share of vehicle sales.
A22: c | B22: P(Car | USA) = P(Car AND USA) / P(USA) | C22: ??
B23: P(Car AND USA) | C23: =C16 -> 0.1330289193
B24: P(USA) | C24: =E16 -> 0.4269406393
B25: =B22 -> P(Car | USA) = P(Car AND USA) / P(USA) | C25: =C23/C24 -> 0.3115864528 | D25: AND/Marginal
B27: P(LT | USA) = P(LT AND USA) / P(USA) | C27: ??
B28: P(LT AND USA) | C28: =D16 -> 0.2939117199
B29: P(USA) | C29: =E16 -> 0.4269406393
B30: =B27 -> P(LT | USA) = P(LT AND USA) / P(USA) | C30: =C28/C29 -> 0.6884135472 | D30: AND/Marginal
A32: d | B32: P(Car | Not USA) | C32: =C17/E17 -> 0.6069057105 | D32: AND/Marginal
B33: P(LT | Not USA) | C33: =D17/E17 -> 0.3930942895 | D33: AND/Marginal
A35: e | B35: P(USA | LT) = | C35: =D16/D18 -> 0.5661096453 | D35: AND/Marginal
C36: If a vehicle was a light truck, there is better than a 50-50 chance that it was
C37: manufactured by one of the U.S. auto makers.
A39: f | B39: There is a higher probability, and thus a larger market share for non U.S. auto makers. However, the U. S. auto makers are leaders in sales for the light truck category.

Sheet (36)
B1: Made Shots/Taken Shots = | C1: 0.89
B2: We will assume Independence
A4: a | B4: Attempts taken | C4: 2
B5: Attempts made | C5: 2
B6: P(make 2 shots in two tries) = | C6: =C1*C1 -> 0.7921
B7: P(make 2 shots in two tries) = | C7: =HYPGEOMDIST(C5,C4,89,100) -> 0.7911111111 | D7: =_xlfn.HYPGEOM.DIST(C5,C4,89,100,0) -> 0.7911111111
A9: b | B9: P(Miss) = 1 - P(Make it) | C9: =1-C1 -> 0.11
B10: P(None) = P(Miss)*P(Miss) = | C10: =C9*C9 -> 0.0121 | F10: better
B11: P(at least 1) = P(1 or 2) = P(1 U 2) = 1 - P(None) = | C11: =1-C10 -> 0.9879 | F11: to
B12: or | F12: foul
B13: ="P(1) + P(2nd single shot) - P(1 and 2 made) = "&C1&" + "&C1&" - "&C6&" =" -> P(1) + P(2nd single shot) - P(1 and 2 made) = 0.89 + 0.89 - 0.7921 = | C13: =C1+C1-C6 -> 0.9879 | F13: center | I13: =C1&"+"&C1&"-"&C6 -> 0.89+0.89-0.7921
A15: c | B15: P(Miss) = 1 - P(Make it) | C15: =1-C1 -> 0.11
B16: P(None) = P(Miss)*P(Miss) = | C16: =C15*C15 -> 0.0121
B17: or
B18: P(None) = 1 - P(at least 1) | C18: =1-C13 -> 0.0121
A20: d | B20: Made Shots/Taken Shots = | C20: 0.58
B21: We will assume Independence
B23: Attempts taken | C23: 2
B24: Attempts made | C24: 2
B25: P(make 2 shots in two tries) = | C25: =C20*C20 -> 0.3364
B26: P(make 2 shots in two tries) = | C26: =HYPGEOMDIST(C24,C23,58,100) -> 0.3339393939 | D26: =_xlfn.HYPGEOM.DIST(C24,C23,58,100,0) -> 0.3339393939
B28: P(Miss) = 1 - P(Make it) | C28: =1-C20 -> 0.42
B29: P(None) = P(Miss)*P(Miss) = | C29: =C28*C28 -> 0.1764
B30: P(at least 1) = P(1 or 2) = P(1 U 2) = 1 - P(None) = | C30: =1-C29 -> 0.8236

Sheet (37-old) (hidden)
B1: P(Use Credit Card) | C1: 0.37
B2: P(18 to 24 Years old | Use Credit Card) | C2: 0.19
B3: P(> 24 Years old | Use Credit Card) | C3: 0.81
B4: Proportion of 18 to 24 who are consumers | C4: 0.14
B6: Proportion of > 24 who are consumers | C6: =1-C4 -> 0.86 | F6: 18 to 24 | G6: > 24 | H6: Total
B7: P(Not use CC) | C7: =1-C1 -> 0.63 | E7: Use Credit Card | F7: =C2*H7 -> 0.0703 | G7: =H7-F7 -> 0.2997 | H7: 0.37
E8: Not Use Credit Card | F8: =F9-F7 -> 0.0697 | G8: =G9-G7 -> 0.5603 | H8: =C7 -> 0.63
A9: a | B9: P(Use Credit Card and 18 to 24 Years old) | C9: =C2*C1 -> 0.0703 | D9: =B1&"*"&B2&" = "&C1&"*"&C2 -> P(Use Credit Card)*P(18 to 24 Years old | Use Credit Card) = 0.37*0.19 | E9: Total | F9: 0.14 | G9: 0.86 | H9: =SUM(F9:G9) -> 1
B10: P(Use Credit Card | 18 to 24 Years old) | C10: =C9/C4 -> 0.5021428571 | D10: =B9&"/"&B4&" ="&CHAR(10)&C9&"/"&C4 -> P(Use Credit Card and 18 to 24 Years old)/Proportion of 18 to 24 who are consumers = 0.0703/0.14
A12: b | B12: P(Use Credit Card and > 24 Years old) | C12: =C1*C3 -> 0.2997 | D12: =B1&"*"&B3&" = "&C1&"*"&C3 -> P(Use Credit Card)*P(> 24 Years old | Use Credit Card) = 0.37*0.81
B13: P(Use Credit Card | > 24 Years old) | C13: =C12/C6 -> 0.3484883721 | D13: =B12&"/"&B6&" = "&C12&"/"&C6 -> P(Use Credit Card and > 24 Years old)/Proportion of > 24 who are consumers = 0.2997/0.86
A16: c | B16: There is a higher probability that the younger consumer, age 18 to 24, will use plastic when making a purchase. The probability that the 18 to 24 year old consumer uses plastic is .5021 and the probability that the older than 24 year old consumer uses plastic is .3485. Note that there is greater than .50 probability that the 18 to 24 years old consumer will use plastic.
A17: d | B17: Companies such as Visa, Mastercard and Discovery want their cards in the hands of consumers who will have a high probability of using the card. So yes, these companies should get their cards in the hands of young consumers even before these consumers have established a credit history. The companies should place a low limit of the amount of credit charges until the young consumer has demonstrated the responsibility to handle higher credit limits.
B19: Not Assigned

Sheet (37)
A1: P(Consumer Use Credit Card) | B1: =C7 -> P(C use P) | C1: 0.37
A2: P(Consumer 18 to 24 Years old | Use Credit Card) | B2: P(18-24 | C) | C2: 0.19
A3: P(Consumer > 24 Years old | Use Credit Card) | B3: P(>24 | C) | C3: 0.81
A4: Proportion of 18 to 24 who are consumers | C4: 0.14
A6: Event | B6: Event Notation | C6: P(x)
A7: Event Consumer Used Plasic | B7: C use P | C7: ="P("&B7&")" -> P(C use P) | D7: 0.37 | F7: check
A8: Event Consumer Not Used Plasic | B8: C Not use P | C8: ="P("&B8&")" -> P(C Not use P) | D8: =1-D7 -> 0.63 | F8: =SUM(D7:D8) -> 1
A9: Event Consumer 18 to 24 | B9: C 18 to 24 | C9: ="P("&B9&")" -> P(C 18 to 24) | D9: 0.14 | F9: check
A10: Event Consumer >24 | B10: C >24 | C10: P(C >24) | D10: =1-D9 -> 0.86 | F10: =SUM(D9:D10) -> 1
C11: ="P("&B9&" | "&B7&")" -> P(C 18 to 24 | C use P) | D11: 0.19 | F11: check
C12: ="P("&B10&" | "&B7&")" -> P(C >24 | C use P) | D12: 0.81 | F12: =SUM(D11:D12) -> 1
A13: Rule = P(A AND B) = P(A) * P(B | A) P(A) = P(A AND B)/P(B | A) P(B | A) = P(A AND B)/P(A)
B14: a | C14: ="P("&B7&" | "&B9&")" -> P(C use P | C 18 to 24) | D14: ?? | E14: P(B | A) = P(A AND B)/P(A)
C15: ="P("&B7&" AND "&B9&")" -> P(C use P AND C 18 to 24) | D15: =D7*D11 -> 0.0703 | H15: Check from contingency Table
C16: =C14 -> P(C use P | C 18 to 24) | D16: =D15/D9 -> 0.5021428571 | H16: =C29/C31 -> 0.5021428571 | I16: AND / Marginal
B17: b | C17: ="P("&B7&" | "&B10&")" -> P(C use P | C >24) | D17: ?? | E17: P(A | B) = P(A AND B)/P(B)
C18: ="P("&B7&" AND "&B10&")" -> P(C use P AND C >24) | D18: =D7*D12 -> 0.2997
C19: =C10 -> P(C >24) | D19: =D10 -> 0.86
C20: =C17 -> P(C use P | C >24) | D20: =D18/D19 -> 0.3484883721 | H20: =D29/D31 -> 0.3484883721 | I20: AND / Marginal
B23: c | C23: There is a higher probability that the younger consumer, age 18 to 24, will use plastic when making a purchase. The probability that the 18 to 24 year old consumer uses plastic is .5021 and the probability that the older than 24 year old consumer uses plastic is .3485. Note that there is greater than .50 probability that the 18 to 24 years old consumer will use plastic.
B24: d | C24: Companies such as Visa, Mastercard and Discovery want their cards in the hands of consumers who will have a high probability of using the card. So yes, these companies should get their cards in the hands of young consumers even before these consumers have established a credit history. The companies should place a low limit of the amount of credit charges until the young consumer has demonstrated the responsibility to handle higher credit limits.
C28: =B9 -> C 18 to 24 | D28: =B10 -> C >24
B29: =B7 -> C use P | C29: =D7*D11 -> 0.0703 | D29: =D7*D12 -> 0.2997 | E29: =SUM(C29:D29) -> 0.37
B30: =B8 -> C Not use P | C30: =C31-C29 -> 0.0697 | D30: =D31-D29 -> 0.5603 | E30: =SUM(C30:D30) -> 0.63
C31: =D9 -> 0.14 | D31: =D10 -> 0.86 | E31: =IF(SUM(E29:E30)=SUM(C31:D31),1,"") -> 1

Sheet (39)
A1: a | B1: **P(A1 AND A2) = 0 ==> means no intersection ==> no sample points in common ==> means Mutually Exclusive
B3: AND = Intersection = upside down U
G5: b | H5: d
A6: Event | B6: P(x) | C6: Prior Probabilities | D6: P(x) | E6: Conditional Prob | F6: P(x) | G6: Joint Probabilities | H6: P(x) | I6: Posterior Probabilities
A7: A1 | B7: ="P("&A7&")" -> P(A1) | C7: 0.4 | D7: ="P(B |"&A7&")" -> P(B |A1) | E7: 0.2 | F7: ="P("&A7&" AND B)" -> P(A1 AND B) | G7: =E7*C7 -> 0.08 | H7: ="P("&A7&" | B)" -> P(A1 | B) | I7: =G7/$G$9 -> 0.7272727273
A8: A2 | B8: P(A2) | C8: 0.6 | D8: ="P(B |"&A8&")" -> P(B |A2) | E8: 0.05 | F8: ="P("&A8&" AND B)" -> P(A2 AND B) | G8: 0.03 | H8: ="P("&A8&" | B)" -> P(A2 | B) | I8: 0.2727272727
C9: =SUM(C7:C8) -> 1 | E9: c | F9: Total | G9: =SUM(G7:G8) -> 0.11 | H9: P(B) because Joint Probabilities ((A1 & B) and (A2 & B) are Mutually Exclusive and Union is entire sample space (collectively exhaustive).

Sheet (44)
C1: a | E1: a
A2: Events | B2: P(X) | C2: Prior Prob | D2: P(X) | E2: Conditional Prob | F2: P(X) | G2: Joint Prob | H2: P(X) | I2: Prior Probability
A3: Graduate | B3: P(A1) | C3: 0.47 | D3: P(W | A1) | E3: 0.5 | F3: P(A1 AND W) | G3: =E3*C3 -> 0.235 | H3: P(A1 | W) | I3: =G3/$G$5 -> 0.4963041183 | J3: << == b
A4: Not Graduate | B4: P(A2) | C4: =1-C3 -> 0.53 | D4: P(W | A2) | E4: 0.45 | F4: P(A2 AND W) | G4: 0.2385 | H4: P(A2 | W) | I4: 0.5036958817
E5: Total | F5: P(W) | G5: =SUM(G3:G4) -> 0.4735 | I5: =SUM(I3:I4) -> 1
G7: **P(W) because Joint Probabilities ((A1 & W) and (A2 & W) are Mutually Exclusive and Union is entire sample space (collectively exhaustive).
A8: c
A9: Events | B9: P(X) | C9: Prior Prob | D9: P(X) | E9: Conditional Prob | F9: P(X) | G9: Joint Prob | H9: P(X) | I9: Prior Probability
A10: Graduate | B10: P(A1) | C10: 0.47 | D10: P(M | A1) | E10: =1-E3 -> 0.5 | F10: P(A1 AND M) | G10: =E10*C10 -> 0.235 | H10: P(A1 | M) | I10: =G10/$G$12 -> 0.4463437797
A11: Not Graduate | B11: P(A2) | C11: =1-C10 -> 0.53 | D11: P(M | A2) | E11: 0.55 | F11: P(A2 AND M) | G11: 0.2915 | H11: P(A2 | M) | I11: =G11/$G$12 -> 0.5536562203
E12: Total | F12: P(M) | G12: =SUM(G10:G11) -> 0.5265 | I12: =SUM(I10:I11) -> 1
E15: d | F15: =F5 -> P(W) | G15: =G5 -> 0.4735
F16: =F12 -> P(M) | G16: =G12 -> 0.5265
G17: =SUM(G15:G16) -> 1

Sheet (52-53)
D1: Applied To More Than One School
D2: Yes | E2: No | F2: Total
B3: Age Group | C3: < =23 | D3: 207 | E3: 201 | F3: =SUM(D3:E3) -> 408
C4: 24-26 | D4: 299 | E4: 379 | F4: 678
C5: 27-30 | D5: 185 | E5: 268 | F5: 453
C6: 31-35 | D6: 66 | E6: 193 | F6: 259
C7: >=36 | D7: 51 | E7: 169 | F7: 220
C8: Total | D8: =SUM(D3:D7) -> 808 | E8: =SUM(E3:E7) -> 1210 | F8: 2018
D10: Applied To More Than One School
D11: Yes | E11: No | F11: Total
A12: a | B12: Age Group | C12: < =23 | D12: =D3/$F$8 -> 0.1025768087 | E12: 0.09960356789 | F12: 0.2021803766
C13: 24-26 | D13: 0.1481665015 | E13: 0.1878097126 | F13: 0.3359762141
C14: 27-30 | D14: 0.09167492567 | E14: 0.1328047572 | F14: 0.2244796829
C15: 31-35 | D15: 0.03270564916 | E15: 0.09563924678 | F15: 0.1283448959
C16: >=36 | D16: 0.02527254708 | E16: 0.08374628345 | F16: 0.1090188305
C17: Total | D17: 0.4003964321 | E17: 0.5996035679 | F17: 1
A19: b | B19: P(<23 years) | C19: =F12 -> 0.2021803766
A20: c | B20: P(<26 years) | C20: =SUM(F14:F16) -> 0.4618434093
A21: d | B21: P(Applied more than 1 school) | C21: =D17 -> 0.4003964321
A23: 53a | B23: P(24-26 | Applied more than 1 school) | C23: =D13/D17 -> 0.370049505 | D23: =TEXT(D13,"0.00%")&"/"&TEXT(D17,"0.00%")&" or "&D4&"/"&D8 -> 14.82%/40.04% or 299/808 | G23: =D4/D8 -> 0.370049505
A24: 53b | B24: P(Applied more than 1 school | >36) | C24: =D16/F16 -> 0.2318181818 | D24: =TEXT(D16,"0.00%")&"/"&TEXT(F16,"0.00%")&" or "&D7&"/"&F7 -> 2.53%/10.90% or 51/220 | G24: =D7/F7 -> 0.2318181818
A25: 53c | B25: P(24-26 OR Applied to more than 1 school) | C25: =F13+D17-D13 -> 0.5882061447 | D25: =TEXT(F13,"0.00%")&"+"&TEXT(D17,"0.00%")&"-"&TEXT(D13,"0.00%") -> 33.60%+40.04%-14.82%
A26: 53d | B26: P(>=31 | Only 1 school) | C26: =SUM(E15:E16)/E17 -> 0.2991735537 | D26: ="("&TEXT(E15,"0.00%")&"+"&TEXT(E16,"0.00%")&")/"&TEXT(E17,"0.00%") -> (9.56%+8.37%)/59.96%
A27: 53e | B27: No because the Marginal Probabilities do not equal the Conditional Probabilities
B28: Example:
B29: P(24-26 | Applied more than 1 school) | C29: =C23 -> 0.370049505
B30: P(24-26) | C30: =F13 -> 0.3359762141
B31: Because P(A) <> P(A | B)
B32: ** <> means not

Sheet 58
B1: Events
B2: Blogger | C2: B
B3: Non Blogger | C3: NB
B4: Young (18-29) Adult | C4: YA
B5: Older (30 or older) Adult | C5: OA
B7: Probabilities Given
B8: P(Adults are Bloggers) | C8: 0.08 | D8: P(B)
B9: P(Adults are NOT Bloggers) | C9: =1-C8 -> 0.92 | D9: P(NB)
B10: P(Young Adults | Bloggers) | C10: 0.54 | D10: P(YA | B)
B11: P(Young Adults | Non Bloggers) | C11: 0.24 | D11: P(YA | NB)
C12: =C10*C8 -> 0.0432 | D12: P(YA AND B) = P(YA | B) * P(B)
C13: =C9*C11 -> 0.2208 | D13: P(YA AND NB) = P(YA | NB) * P(NB)
B15: Young Adults | C15: Older Adults | D15: Totals
A16: Blogger | B16: =C12 -> 0.0432 | C16: =D16-B16 -> 0.0368 | D16: =D18-D17 -> 0.08
A17: Non Blogger | B17: =C13 -> 0.2208 | C17: =D17-B17 -> 0.6992 | D17: =C9 -> 0.92
A18: Totals | B18: =SUM(B16:B17) -> 0.264 | C18: =D18-B18 -> 0.736 | D18: 1
B20: Young Adults | C20: Older Adults | D20: Totals
A21: Blogger | B21: =B16*10000 -> 432 | C21: 368 | D21: 800
A22: Non Blogger | B22: 2208 | C22: 6992 | D22: 9200
A23: Totals | B23: 2640 | C23: 7360 | D23: 10000
B26: Young Adults | C26: Older Adults | D26: Totals
A27: Blogger | B27: =B21/$D$23 -> 0.0432 | C27: 0.0368 | D27: 0.08 | F27: Joint
A28: Non Blogger | B28: 0.2208 | C28: 0.6992 | D28: 0.92
A29: Totals | B29: 0.264 | C29: 0.736 | D29: 1
B31: Young Adults | C31: Older Adults | D31: Totals
A32: Blogger | B32: =B21/B$23 -> 0.1636363636 | C32: 0.05 | D32: 0.08 | F32: Conditional
A33: Non Blogger | B33: 0.8363636364 | C33: 0.95 | D33: 0.92
A34: Totals | B34: 1 | C34: 1 | D34: 1
B36: Young Adults | C36: Older Adults | D36: Totals
A37: Blogger | B37: =B21/$D21 -> 0.54 | C37: 0.46 | D37: 1 | F37: Conditional
A38: Non Blogger | B38: 0.24 | C38: 0.76 | D38: 1
A39: Totals | B39: 0.264 | C39: 0.736 | D39: 1
